bitfinex-derivatives/quotes_ETHF0:USTF0_20250524
["timestamp","ask_amount","ask_price","bid_price","bid_amount"]
[1748077352844,0.07549626,2559.7,2559.6,5.95347968]
[1748077354440,0.07549626,2559.7,2559.6,4.88991236]
[1748077354643,0.07549626,2559.7,2559.6,6.48130615]
[1748077355547,18.36506,2559.9,2559.6,6.48127615]
[1748077355739,19.65746,2559.9,2559.7,1.3452]
[1748077356247,0.78111,2559.7,2559.6,2.49235615]
[1748077356839,2.73971,2559.7,2559.6,0.90096236]
[1748077357648,1.9586,2559.7,2559.6,0.90096236]
[1748077357848,19.5406,2559.7,2559.6,0.90096236]
[1748077358148,20.32171,2559.7,2559.6,0.90096236]
[1748077359751,20.32171,2559.7,2559.6,1.70004747]
[1748077359947,2.73971,2559.7,2559.6,1.70004747]
[1748077360147,20.32171,2559.7,2559.6,1.70004747]
[1748077360355,19.5406,2559.7,2559.6,1.70004747]
[1748077360852,18.8744,2559.7,2559.6,3.07054747]
[1748077361551,17.582,2559.7,2559.6,3.85167747]
[1748077361750,2.16115,2559.9,2559.6,3.85167747]
[1748077361950,17.582,2559.8,2559.7,1.3705]
[1748077362151,18.36307,2559.8,2559.7,1.3705]
[1748077362349,18.36307,2559.8,2559.7,2.27146236]
[1748077362653,17.582,2559.8,2559.7,2.27146236]
[1748077362853,18.36307,2559.8,2559.7,2.27146236]
[1748077363454,1.3801,2559.9,2559.8,0.78107]
[1748077363646,18.36304,2559.9,2559.8,1.4028]
[1748077364049,18.36304,2559.9,2559.8,3.36923864]
[1748077364344,19.74514,2559.9,2559.8,1.96643864]
[1748077365052,22.95294,2559.9,2559.8,1.96643864]
[1748077365454,19.74514,2559.9,2559.8,1.96643864]
[1748077365657,19.74514,2559.9,2559.8,0.90096236]
[1748077367152,0.78101,2560.1,2559.8,1.68202236]
[1748077367350,34.00501,2560.0,2559.9,0.647]
[1748077368850,34.00501,2560.0,2559.9,1.54796236]
[1748077373458,1.3078,2560.1,2560.0,0.78101]
[1748077373654,0.78101,2560.0,2559.9,4.46173666]
[1748077373850,0.78101,2560.0,2559.9,2.34500666]
[1748077374159,2.07211,2560.0,2559.9,1.69800666]
[1748077379565,19.65211,2560.0,2559.9,1.69800666]
[1748077384267,2.07211,2560.0,2559.9,1.69800666]
[1748077384468,35.29411,2560.0,2559.9,1.69800666]
[1748077384861,35.36960626,2560.0,2559.9,1.69800666]
[1748077386063,35.36960626,2560.0,2559.9,0.90096236]
[1748077387670,2.14760626,2560.0,2559.9,0.90096236]
[1748077387969,35.36960626,2560.0,2559.9,0.90096236]
[1748077388571,2.14760626,2560.0,2559.9,0.90096236]
[1748077388773,35.36960626,2560.0,2559.9,2.85856236]
[1748077389068,35.36960626,2560.0,2559.9,3.65560666]
[1748077389766,35.36960626,2560.0,2559.9,1.69800666]
[1748077392171,35.36960626,2560.0,2559.9,0.90096236]
[1748077392362,35.37535115,2560.0,2559.9,0.90096236]
[1748077394260,0.7811,2559.7,2559.6,1.06547628]
[1748077394467,0.78122,2559.3,2559.2,1.68176404]
[1748077394759,37.03702,2559.3,2559.2,4.04e-06]
[1748077394958,0.78128,2559.1,2559.0,2.20330059]
[1748077395470,0.78137,2558.8,2558.7,1.30556238]
[1748077395671,16.25037,2558.8,2558.7,1.30556238]
[1748077396075,17.55367,2558.8,2558.7,1.30556238]
[1748077396570,18.36337,2558.8,2558.7,1.30556238]
[1748077396763,18.36337,2558.8,2558.7,2.67516238]
[1748077397667,19.74977,2558.8,2558.7,2.67516238]
[1748077398171,3.8667,2559.2,2558.7,2.67516238]
[1748077398372,17.582,2558.8,2558.6,0.00586682]
[1748077398564,16.2514,2558.7,2558.6,0.00586682]
[1748077398764,18.9802,2558.7,2558.6,6.82e-06]
[1748077399067,23.9802,2558.7,2558.6,6.82e-06]
[1748077406677,41.5692,2558.7,2558.6,6.82e-06]
[1748077408875,36.5692,2558.7,2558.6,6.82e-06]
[1748077409174,3.5102,2558.7,2558.6,6.82e-06]
[1748077409478,36.5772,2558.7,2558.6,6.82e-06]
[1748077410676,35.8773,2558.7,2558.6,6.82e-06]
[1748077411881,0.7814,2558.7,2558.6,6.82e-06]
[1748077412081,33.8494,2558.7,2558.6,6.82e-06]
[1748077414081,0.7814,2558.7,2558.6,6.82e-06]
[1748077414274,33.8504,2558.7,2558.6,6.82e-06]
[1748077416286,33.92589626,2558.7,2558.6,6.82e-06]
[1748077417973,16.33389626,2558.7,2558.6,6.82e-06]
[1748077418179,33.92489626,2558.7,2558.6,6.82e-06]
[1748077419876,16.33389626,2558.7,2558.6,6.82e-06]
[1748077420084,33.92489626,2558.7,2558.6,5.00000682]
[1748077420484,15.55249626,2558.7,2558.6,5.00000682]
[1748077420681,33.92489626,2558.7,2558.6,6.93560682]
[1748077420887,33.14349626,2558.7,2558.6,6.93560682]
[1748077421887,33.92489626,2558.7,2558.6,7.80071193]
[1748077424282,0.85689626,2558.7,2558.6,7.80071193]
[1748077424483,18.44689626,2558.7,2558.6,7.80071193]
[1748077426192,18.44689626,2558.7,2558.6,2.80071193]
[1748077427989,0.85689626,2558.7,2558.6,2.80071193]
[1748077428189,34.00389626,2558.7,2558.6,2.80071193]
[1748077431886,34.00389626,2558.7,2558.6,1.93560682]
[1748077433698,34.00389626,2558.7,2558.6,0.64160682]
[1748077436406,37.21169626,2558.7,2558.6,6.82e-06]
[1748077439314,42.21169626,2558.7,2558.6,6.82e-06]
[1748077439502,37.21169626,2558.7,2558.6,6.82e-06]
[1748077440510,0.78162,2558.0,2557.9,4.27273899]
[1748077440713,33.93062,2558.0,2557.9,4.27273899]
[1748077441097,33.93062,2558.0,2557.9,3.2078]
[1748077441505,0.78168,2557.8,2557.7,1.98886682]
[1748077442511,0.78168,2557.8,2557.7,2.86585195]
[1748077443415,0.7018,2558.2,2557.7,3.64754195]
[1748077443610,0.78166,2557.9,2557.8,1.329]
[1748077444512,33.15,2558.1,2557.8,2.20598513]
[1748077444711,33.9316,2558.1,2557.9,0.78163]
[1748077444907,33.9316,2558.1,2558.0,1.329]
[1748077445103,33.9316,2558.1,2558.0,1.9672]
[1748077445309,33.93259,2558.1,2558.0,1.9672]
[1748077446110,33.93259,2558.1,2558.0,2.84418513]
[1748077447415,33.93259,2558.1,2558.0,3.62580513]
[1748077447614,15.56,2558.1,2558.0,2.84418513]
[1748077447805,33.152,2558.1,2558.0,8.62580513]
[1748077448506,33.152,2558.1,2558.0,3.62580513]
[1748077449009,33.93359,2558.1,2558.0,2.84418513]
[1748077449213,33.93359,2558.1,2558.0,3.62580513]
[1748077449815,33.93359,2558.1,2557.9,1.06493899]
[1748077449816,37.14139,2558.1,2557.9,1.06493899]
[1748077450008,2.83642,2558.0,2557.9,0.21143412]
[1748077450415,2.0548,2558.0,2557.7,0.00586682]
[1748077450611,0.78168,2557.8,2557.7,0.00586682]
[1748077450910,3.98948,2557.8,2557.7,0.00586682]
[1748077454218,3.98948,2557.8,2557.7,6.82e-06]
[1748077454816,8.98948,2557.8,2557.7,6.82e-06]
[1748077456417,3.98948,2557.8,2557.7,6.82e-06]
[1748077457520,4.64112559,2557.8,2557.7,6.82e-06]
[1748077458022,37.79512559,2557.8,2557.7,6.82e-06]
[1748077460421,37.14348,2557.8,2557.7,6.82e-06]
[1748077461121,37.21897626,2557.8,2557.7,6.82e-06]
[1748077461310,42.21897626,2557.8,2557.7,6.82e-06]
[1748077462609,37.21897626,2557.8,2557.7,6.82e-06]
[1748077466217,19.62597626,2557.8,2557.7,6.82e-06]
[1748077466625,37.22397626,2557.8,2557.7,6.82e-06]
[1748077467523,4.06497626,2557.8,2557.7,6.82e-06]
[1748077467829,37.22397626,2557.8,2557.7,6.82e-06]
[1748077469527,19.62597626,2557.8,2557.7,6.82e-06]
[1748077469730,37.22397626,2557.8,2557.7,6.82e-06]
[1748077470831,37.22497626,2557.8,2557.7,6.82e-06]
[1748077471324,4.06497626,2557.8,2557.7,6.82e-06]
[1748077471528,37.22497626,2557.8,2557.7,6.82e-06]
[1748077472424,19.62697626,2557.8,2557.7,6.82e-06]
[1748077472624,37.22497626,2557.8,2557.7,6.82e-06]
[1748077473525,4.06497626,2557.8,2557.7,6.82e-06]
[1748077473730,37.22497626,2557.8,2557.7,6.82e-06]
[1748077475531,4.06497626,2557.8,2557.7,6.82e-06]
[1748077475736,15.63749626,2557.8,2557.7,5.00000682]
[1748077476038,34.01717626,2557.8,2557.7,5.00000682]
[1748077476829,34.01717626,2557.8,2557.7,6.33530682]
[1748077477132,34.01717626,2557.8,2557.7,1.33530682]
[1748077477338,34.01717626,2557.8,2557.7,2.22022516]
[1748077477936,34.01717626,2557.8,2557.7,7.22022516]
[1748077478534,34.01717626,2557.8,2557.7,2.22022516]
[1748077479636,34.01717626,2557.8,2557.7,3.01836901]
[1748077480335,34.01517626,2557.8,2557.7,3.01836901]
[1748077480538,16.41817626,2557.8,2557.7,3.01836901]
[1748077480735,34.01517626,2557.8,2557.7,3.01836901]
[1748077481239,34.01517626,2557.8,2557.7,3.80007901]
[1748077481934,0.07549626,2557.8,2557.7,8.80007901]
[1748077482140,16.61399626,2557.8,2557.7,8.80007901]
[1748077482346,16.68949252,2557.8,2557.7,8.80007901]
[1748077482640,0.07549626,2557.8,2557.7,8.80007901]
[1748077483139,0.07549626,2557.8,2557.7,9.59107101]
[1748077485143,15.547,2558.3,2558.2,0.78156]
[1748077485344,33.143,2558.3,2558.2,3.98936]
[1748077486544,33.143,2558.3,2558.2,5.6713911]
[1748077487049,33.143,2558.3,2558.2,6.9880911]
[1748077487946,33.143,2558.3,2558.2,11.9880911]
[1748077488150,33.92453,2558.3,2558.2,2.9987311]
[1748077489150,33.92453,2558.3,2558.2,1.3167]
[1748077489346,35.26933,2558.3,2558.2,1.3167]
[1748077489647,35.34482626,2558.3,2558.2,1.3167]
[1748077491952,0.78165,2557.9,2557.8,1.44121276]
[1748077492251,16.32765,2557.9,2557.8,2.74711276]
[1748077492757,16.32765,2557.9,2557.8,3.52879276]
[1748077492950,15.546,2557.9,2557.8,3.52879276]
[1748077493253,16.32765,2557.9,2557.8,3.61558167]
[1748077494760,33.139,2557.9,2557.8,6.82338167]
[1748077495057,33.92065,2557.9,2557.8,6.82338167]
[1748077497259,1.45104,2558.0,2557.9,0.78165]
[1748077497462,33.92064,2558.0,2557.9,2.18445]
[1748077497763,0.78165,2557.9,2557.8,0.88390167]
[1748077497963,5.98225,2557.9,2557.8,0.88390167]
[1748077499764,0.78168,2557.8,2557.7,6.82e-06]
[1748077499964,2.82188,2557.8,2557.7,6.82e-06]
[1748077504362,3.47352559,2557.8,2557.7,6.82e-06]
[1748077505668,3.47352559,2557.8,2556.9,1.3574]
[1748077505669,0.78192,2557.0,2556.9,1.3574]
[1748077505868,0.78195,2556.9,2556.8,4.00491276]
[1748077506073,2.82595,2556.9,2556.8,4.00491276]
[1748077506264,0.78199,2556.8,2556.7,0.79711276]
[1748077506461,2.08819,2556.8,2556.7,0.79711276]
[1748077507869,0.78205,2556.6,2556.5,1.29566682]
[1748077508071,16.33105,2556.6,2556.5,1.29566682]
[1748077508363,15.549,2556.6,2556.5,2.07774682]
[1748077508568,17.597,2556.9,2556.5,9.50346682]
[1748077508762,17.597,2556.9,2556.8,3.98979]
[1748077509072,0.00586682,2557.0,2556.9,0.78195]
[1748077509370,17.597,2557.3,2557.2,0.78186]
[1748077509762,17.597,2557.3,2557.2,5.78186]
[1748077510265,17.597,2557.3,2557.2,6.67390639]
[1748077510459,17.597,2557.3,2557.2,8.02680639]
[1748077512572,18.37883,2557.3,2557.2,8.02680639]
[1748077512773,17.597,2557.3,2557.2,8.68550639]
[1748077512974,18.37883,2557.3,2557.2,2.90364639]
[1748077514069,18.37883,2557.3,2557.2,1.55074639]
[1748077514269,18.37883,2557.3,2557.2,0.89204639]
[1748077514974,0.78192,2557.0,2556.9,0.6964]
[1748077515177,16.36292,2557.0,2556.9,0.6964]
[1748077515368,16.36292,2557.0,2556.9,1.47835]
[1748077515569,16.36292,2557.0,2556.9,2.79815]
[1748077516368,0.7031,2557.2,2557.1,0.78189]
[1748077516566,33.18,2557.2,2557.1,0.78186]
[1748077516766,0.78191,2557.1,2556.9,2.79813]
[1748077516974,0.78189,2557.1,2556.9,2.79814]
[1748077517171,0.78192,2557.0,2556.9,2.79814]
[1748077517373,2.18301,2557.1,2557.0,0.78192]
[1748077517573,2.18301,2557.1,2557.0,2.99397057]
[1748077518277,0.78185,2557.3,2557.1,0.78189]
[1748077518473,0.78185,2557.3,2557.2,1.2706]
[1748077518672,33.181,2557.3,2557.2,2.05246]
[1748077519071,1.48493,2557.4,2557.3,0.78183]
[1748077519273,34.66593,2557.4,2557.3,1.2706]
[1748077521181,0.78188,2557.2,2557.0,3.2078]
[1748077521378,0.78188,2557.2,2557.1,1.2706]
[1748077523079,0.78188,2557.2,2557.1,2.16401228]
[1748077524671,0.78188,2557.2,2557.1,0.89341228]
[1748077525682,0.78189,2557.1,2557.0,3.2078]
[1748077525873,0.78189,2557.1,2557.0,4.5072]
[1748077528081,0.78189,2557.1,2557.0,5.40219779]
[1748077530378,0.78189,2557.1,2557.0,2.19439779]
[1748077530579,0.78189,2557.1,2557.0,0.89499779]
[1748077532878,33.96389,2557.1,2557.0,0.89499779]
[1748077534184,34.03938626,2557.1,2557.0,0.89499779]
[1748077538382,33.96389,2557.1,2557.0,0.89499779]
[1748077539383,34.03938626,2557.1,2557.0,0.89499779]
[1748077539784,0.85738626,2557.1,2557.0,0.89499779]
[1748077540085,0.07549626,2557.1,2557.0,1.67691779]
[1748077540287,33.25949626,2557.1,2557.0,1.67691779]
[1748077540484,0.07549626,2557.1,2557.0,1.67691779]
[1748077540785,17.67649626,2557.1,2557.0,2.97021779]
[1748077540980,17.67649626,2557.1,2557.0,7.97021779]
[1748077541286,0.07549626,2557.1,2557.0,11.17801779]
[1748077548288,0.07549626,2557.1,2557.0,13.29747872]
[1748077549589,0.07549626,2557.1,2557.0,11.17801779]
[1748077554696,0.07549626,2557.1,2557.0,6.17801779]
[1748077556191,0.07549626,2557.1,2557.0,4.88471779]
[1748077556392,0.07549626,2557.1,2557.0,6.18491779]
[1748077560095,0.07549626,2557.1,2557.0,4.88471779]
[1748077560691,1.42279626,2557.1,2557.0,4.88471779]
[1748077560892,2.20468626,2557.1,2557.0,4.88471779]
[1748077561087,2.20468626,2557.1,2557.0,4.10279779]
[1748077561995,2.20468626,2557.1,2557.0,5.16617209]
[1748077562689,2.20468626,2557.1,2557.0,5.94809209]
[1748077562889,2.20468626,2557.1,2557.0,6.48489361]
[1748077563801,2.20468626,2557.1,2557.0,6.21952305]
[1748077564297,2.20468626,2557.1,2557.0,5.43760305]
[1748077565198,7.20468626,2557.1,2557.0,1.43179931]
[1748077565491,7.20468626,2557.1,2557.0,0.29800306]
[1748077565492,10.41248626,2557.1,2557.0,0.29800306]
[1748077565696,0.78192,2557.0,2556.9,1.0633743]
[1748077565891,2.77122,2557.0,2556.9,1.0633743]
[1748077566093,7.77122,2557.0,2556.9,1.0633743]
[1748077566495,0.78205,2556.6,2556.5,0.80489411]
[1748077566702,33.88105,2556.6,2556.5,0.80489411]
[1748077568397,33.88105,2556.6,2556.5,0.00586682]
[1748077571296,35.15215,2556.6,2556.5,0.00586682]
[1748077572500,0.78214,2556.3,2556.2,0.79902729]
[1748077572904,5.78214,2556.3,2556.2,0.79902729]
[1748077573106,7.05324,2556.3,2556.2,0.79902729]
[1748077573401,0.78223,2556.0,2555.9,3.2078]
[1748077573608,0.78226,2555.9,2555.8,0.79902729]
[1748077573901,2.77676,2555.9,2555.8,0.79902729]
[1748077574907,0.78229,2555.8,2555.7,0.00586682]
[1748077575100,2.12999,2555.8,2555.7,0.00586682]
[1748077575703,2.79749,2555.8,2555.7,0.00586682]
[1748077577394,7.79749,2555.8,2555.7,0.00586682]
[1748077577598,7.79749,2555.8,2555.2,2.10458967]
[1748077577599,0.78244,2555.3,2555.2,0.79902729]
[1748077577799,33.85844,2555.3,2555.2,0.79902729]
[1748077578003,0.78251,2555.1,2555.0,3.2078]
[1748077578196,2.0579,2555.2,2555.1,0.78251]
[1748077578402,2.0579,2555.2,2555.0,3.2078]
[1748077578403,2.84039,2555.2,2555.0,3.2078]
[1748077578597,1.3688,2555.2,2555.1,0.78251]
[1748077578906,2.15127,2555.2,2555.0,3.99033]
[1748077579098,0.78251,2555.1,2555.0,3.2078]
[1748077579300,2.15131,2555.1,2555.0,3.2078]
[1748077579501,1.3688,2555.1,2555.0,3.99034]
[1748077579804,2.15131,2555.1,2555.0,3.99034]
[1748077580099,1.3688,2555.1,2555.0,3.99034]
[1748077580507,15.474,2555.6,2555.5,0.78238]
[1748077580704,17.606,2555.6,2555.5,0.78238]
[1748077580905,1.3954,2555.9,2555.8,0.78229]
[1748077581101,34.4754,2555.9,2555.8,0.78229]
[1748077581504,35.25766,2555.9,2555.8,2.12919]
[1748077581711,35.25766,2555.9,2555.8,1.3469]
[1748077581909,0.78229,2555.8,2555.7,3.2078]
[1748077582110,0.78235,2555.6,2555.5,1.3469]
[1748077582298,0.78235,2555.6,2555.5,2.12927]
[1748077582503,0.78234,2555.7,2555.5,2.12927]
[1748077582809,0.78234,2555.7,2555.6,0.78235]
[1748077583005,0.78235,2555.6,2555.5,2.12926]
[1748077583216,0.78234,2555.7,2555.5,2.12926]
[1748077583510,0.78235,2555.6,2555.5,1.3469]
[1748077585506,0.78235,2555.6,2555.4,3.8881]
[1748077585507,0.78238,2555.5,2555.4,3.8881]
[1748077585709,16.25838,2555.5,2555.4,3.8881]
[1748077586309,16.25838,2555.5,2555.4,6.08081]
[1748077586611,16.25838,2555.5,2555.4,5.2984]
[1748077586810,16.25838,2555.5,2555.4,6.08081]
[1748077588513,16.25838,2555.5,2555.4,5.2984]
[1748077589020,17.53838,2555.5,2555.4,5.2984]
[1748077591411,17.53838,2555.5,2555.4,6.08081]
[1748077591611,17.53838,2555.5,2555.4,5.2984]
[1748077592210,17.53838,2555.5,2555.4,3.8881]
[1748077592408,17.53838,2555.5,2555.4,3.2078]
[1748077595610,17.53838,2555.5,2554.9,5.30502729]
[1748077595611,16.756,2555.5,2554.9,5.30502729]
[1748077595816,0.78251,2555.1,2555.0,0.6807]
[1748077596013,33.86951,2555.1,2555.0,1.9789]
[1748077597213,33.86951,2555.1,2555.0,2.86461025]
[1748077597414,33.087,2555.1,2555.0,2.86461025]
[1748077597618,15.478,2555.2,2555.1,0.78248]
[1748077597819,33.088,2555.2,2555.1,2.18738]
[1748077598822,33.088,2555.2,2555.1,3.87211754]
[1748077599124,33.87047,2555.2,2555.1,3.87211754]
[1748077599508,17.61,2555.2,2555.1,3.87211754]
[1748077599820,17.611,2555.2,2555.1,3.87214754]
[1748077600124,15.478,2555.3,2555.2,0.78247]
[1748077600417,17.611,2555.3,2555.2,5.39517]
[1748077601813,17.611,2555.3,2555.2,6.28088025]
[1748077605121,18.39344,2555.3,2555.2,6.28088025]
[1748077605321,17.611,2555.3,2555.2,6.28088025]
[1748077606120,18.9988,2555.3,2555.2,6.28088025]
[1748077606921,19.78124,2555.3,2555.2,5.49841025]
[1748077607219,19.78124,2555.3,2555.2,4.87598025]
[1748077607421,19.78124,2555.3,2555.2,4.09351025]
[1748077608223,19.78124,2555.3,2555.2,4.89157501]
[1748077608615,19.78124,2555.3,2555.2,5.67404501]
[1748077608820,19.78124,2555.3,2555.2,4.89157501]
[1748077610631,18.9988,2555.3,2555.2,5.67404501]
[1748077610928,19.78124,2555.3,2555.2,4.89157501]
[1748077611631,19.85673626,2555.3,2555.2,4.89157501]
[1748077616134,19.85673626,2555.3,2555.2,5.42993825]
[1748077618635,19.85673626,2555.3,2555.2,2.22213825]
[1748077619937,23.06453626,2555.3,2555.2,2.22213825]
[1748077620637,22.98904,2555.3,2555.2,2.22213825]
[1748077621040,22.98904,2555.3,2555.2,0.88571025]
[1748077624936,4.5956,2555.3,2555.2,0.88571025]
[1748077625140,38.47004,2555.3,2555.2,0.88571025]
[1748077625339,38.47004,2555.3,2555.2,1.68377501]
[1748077626845,38.47004,2555.3,2555.2,3.07987501]
[1748077627044,22.99104,2555.3,2555.2,3.86234501]
[1748077627345,33.091,2555.3,2555.2,3.86234501]
[1748077627545,0.6364,2555.5,2555.2,3.07987501]
[1748077627742,0.85787626,2555.5,2555.4,0.7824]
[1748077627945,33.16649626,2555.5,2555.4,0.7824]
[1748077628145,0.07549626,2555.5,2555.4,2.1785]
[1748077628342,33.16649626,2555.5,2555.4,2.1785]
[1748077628543,33.16649626,2555.5,2555.4,4.12832645]
[1748077628743,33.87338,2555.5,2555.4,3.34592645]
[1748077629244,33.87338,2555.5,2555.4,4.12833645]
[1748077629439,33.87338,2555.5,2555.4,3.34592645]
[1748077630647,33.87338,2555.5,2555.4,4.12833645]
[1748077630947,33.091,2555.5,2555.4,4.12833645]
[1748077631944,33.87338,2555.5,2555.4,3.34592645]
[1748077632145,35.84018,2555.5,2555.4,3.34592645]
[1748077632550,35.84018,2555.5,2555.4,2.28181025]
[1748077632951,35.84018,2555.5,2555.4,0.88571025]
[1748077633445,35.84018,2555.5,2555.4,2.20811025]
[1748077633752,35.84018,2555.5,2555.4,0.88571025]
[1748077634352,35.84018,2555.5,2555.4,1.66812025]
[1748077634548,35.84018,2555.5,2555.4,3.01082025]
[1748077635152,35.84018,2555.5,2555.4,4.07314283]
[1748077635656,35.84018,2555.5,2555.4,3.29073283]
[1748077635955,35.91567626,2555.5,2555.4,3.29073283]
[1748077636952,35.84018,2555.5,2555.4,3.29073283]
[1748077637957,35.84018,2555.5,2555.4,4.07314283]
[1748077638256,35.83718,2555.5,2555.4,3.29073283]
[1748077639158,35.83718,2555.5,2555.4,2.22841025]
[1748077643659,35.83718,2555.5,2555.4,0.88571025]
[1748077644364,35.83718,2555.5,2555.4,1.68276076]
[1748077647270,35.83718,2555.5,2555.4,0.88571025]
[1748077648072,39.04498,2555.5,2555.4,0.88571025]
[1748077648370,0.78247,2555.2,2555.1,5.1e-07]
[1748077648663,3.99027,2555.2,2555.1,5.1e-07]
[1748077649071,5.16406,2555.2,2554.8,0.00586682]
[1748077649257,17.4443,2555.1,2554.8,0.00586682]
[1748077649462,0.78257,2554.9,2554.8,0.00586682]
[1748077649865,2.18797,2554.9,2554.8,0.00586682]
[1748077650572,19.79897,2554.9,2554.8,0.00586682]
[1748077650765,19.79897,2554.9,2554.8,1.39166682]
[1748077652474,1.4054,2554.9,2554.8,1.39166682]
[1748077652678,33.084,2554.9,2554.8,2.17426682]
[1748077653376,33.084,2554.9,2554.8,3.2365894]
[1748077653577,33.86657,2554.9,2554.8,2.4539894]
[1748077653776,33.084,2554.9,2554.8,3.2365894]
[1748077654780,0.78252,2555.1,2555.0,0.78253]
[1748077654971,0.78254,2555.0,2554.9,2.10625]
[1748077655174,0.78254,2555.0,2554.9,0.78255]
[1748077656176,0.78254,2555.0,2554.9,1.84487258]
[1748077657472,33.86751,2555.1,2555.0,0.78254]
[1748077657667,33.86751,2555.1,2555.0,1.46424]
[1748077657874,0.78249,2555.2,2555.1,0.78247]
[1748077658177,15.471,2555.2,2555.1,0.78247]
[1748077658378,0.78251,2555.1,2555.0,2.11461]
[1748077658879,0.78251,2555.1,2555.0,3.17693258]
[1748077659874,0.78251,2555.1,2555.0,6.38473258]
[1748077660483,0.78251,2555.1,2555.0,5.60222258]
[1748077660780,0.78251,2555.1,2555.0,6.38476258]
[1748077661281,0.78251,2555.1,2555.0,5.60222258]
[1748077661581,0.78251,2555.1,2555.0,6.14218443]
[1748077661882,0.78251,2555.1,2555.0,7.07445064]
[1748077662084,2.76481,2555.1,2555.0,7.07445064]
[1748077662384,2.76481,2555.1,2555.0,7.85699064]
[1748077662783,2.12461,2555.1,2555.0,7.85699064]
[1748077666687,33.86649,2555.2,2555.1,0.78251]
[1748077666884,33.86649,2555.2,2555.1,2.10221]
[1748077667085,33.86649,2555.2,2555.1,1.85966185]
[1748077667589,35.19809,2555.2,2555.1,1.85966185]
[1748077667985,35.19809,2555.2,2555.1,2.64217185]
[1748077668486,15.461,2555.3,2555.2,0.78247]
[1748077668687,33.074,2555.3,2555.2,2.11337]
[1748077668881,33.85644,2555.3,2555.2,2.65333185]
[1748077669186,33.85644,2555.3,2555.2,1.87086185]
[1748077670086,33.85644,2555.3,2555.2,2.80312806]
[1748077670388,35.16604,2555.3,2555.2,1.47222806]
[1748077675789,35.83164,2555.3,2555.2,1.47222806]
[1748077682490,0.78251,2555.1,2555.0,1.06335624]
[1748077682701,3.99031,2555.1,2555.0,1.06335624]
[1748077682899,8.99031,2555.1,2555.0,1.06335624]
[1748077683501,0.78257,2554.9,2554.8,0.00586682]
[1748077683710,16.24457,2554.9,2554.8,0.00586682]
[1748077684201,18.24617,2554.9,2554.8,0.00586682]
[1748077687506,35.17817,2554.9,2554.8,0.00586682]
[1748077687805,35.17817,2554.9,2554.8,1.30756682]
[1748077688901,2.10217,2554.9,2554.8,1.30756682]
[1748077689100,35.17817,2554.9,2554.8,1.30756682]
[1748077689509,35.17817,2554.9,2554.8,0.00586682]
[1748077692418,35.17817,2554.9,2554.8,1.40046682]
[1748077694515,33.85857,2554.9,2554.8,1.40046682]
[1748077694715,33.86057,2554.9,2554.8,1.40046682]
[1748077694916,33.86057,2554.9,2554.8,1.93702392]
[1748077695317,33.86057,2554.9,2554.8,2.89142734]
[1748077699722,0.65331366,2555.1,2554.8,2.89142734]
[1748077699920,33.84956,2555.0,2554.9,1.3418]
[1748077700318,33.84956,2555.0,2554.9,1.8783571]
[1748077700627,33.84956,2555.0,2554.9,3.89611676]
[1748077701225,16.23456,2555.0,2554.9,3.89611676]
[1748077701426,33.84956,2555.0,2554.9,3.89611676]
[1748077701728,33.84956,2555.0,2554.9,2.83276052]
[1748077706123,33.84856,2555.0,2554.9,2.83276052]
[1748077706930,15.452,2555.0,2554.9,2.83276052]
[1748077707129,33.066,2555.0,2554.9,3.61533052]
[1748077707324,15.452,2555.0,2554.9,3.61533052]
[1748077707525,33.066,2555.0,2554.9,3.61533052]
[1748077708229,33.84854,2555.0,2554.9,2.83276052]
[1748077709128,33.84854,2555.0,2554.9,3.61533052]
[1748077709331,16.23454,2555.0,2554.9,3.61533052]
[1748077709531,33.84754,2555.0,2554.9,5.21155108]
[1748077710535,33.84754,2555.0,2554.9,4.42898108]
[1748077710733,33.84754,2555.0,2554.9,3.08718108]
[1748077710941,37.05534,2555.0,2554.9,3.08718108]
[1748077711441,37.05534,2555.0,2554.9,0.95440342]
[1748077713530,42.05534,2555.0,2554.9,0.95440342]
[1748077715235,37.05534,2555.0,2554.9,0.95440342]
[1748077716540,42.70865366,2555.0,2554.9,0.95440342]
[1748077717338,37.70865366,2555.0,2554.9,0.95440342]
[1748077717739,1.43585366,2555.0,2554.9,0.95440342]
[1748077718039,33.72031366,2555.0,2554.9,1.73697342]
[1748077718232,34.50285366,2555.0,2554.9,3.02327342]
[1748077718436,33.72031366,2555.0,2554.9,3.02327342]
[1748077718843,34.50285366,2555.0,2554.9,2.24070342]
[1748077719140,33.84954,2555.0,2554.9,2.24070342]
[1748077719955,33.84954,2555.0,2554.9,3.0390464]
[1748077720141,0.65331366,2555.1,2555.0,0.78254]
[1748077720444,33.72031366,2555.1,2555.0,2.17364]
[1748077720938,34.50282366,2555.1,2555.0,1.3911]
[1748077721139,34.50282366,2555.1,2555.0,3.94172398]
[1748077721443,33.72031366,2555.1,2555.0,4.72426398]
[1748077722749,34.50282366,2555.1,2555.0,4.72426398]
[1748077722941,34.50282366,2555.1,2555.0,3.94172398]
[1748077723641,34.50282366,2555.1,2555.0,4.72426398]
[1748077723841,33.84951,2555.1,2555.0,4.72426398]
[1748077724044,33.84951,2555.1,2555.0,3.12804342]
[1748077724543,33.84951,2555.1,2555.0,2.34550342]
[1748077725549,33.84951,2555.1,2555.0,3.94172398]
[1748077725943,33.84951,2555.1,2555.0,4.72426398]
[1748077726752,33.84951,2555.1,2555.0,3.12804342]
[1748077727656,33.84951,2555.1,2555.0,2.34550342]
[1748077727858,33.84951,2555.1,2555.0,0.95440342]
[1748077728147,33.84951,2555.1,2555.0,1.73694342]
[1748077728551,33.84951,2555.1,2555.0,3.09874342]
[1748077729254,33.84951,2555.1,2555.0,4.1610501]
[1748077730456,33.84951,2555.1,2555.0,2.0167101]
[1748077731149,35.15331,2555.1,2555.0,2.0167101]
[1748077731352,35.22880626,2555.1,2555.0,2.0167101]
[1748077733957,35.22880626,2555.1,2555.0,0.95440342]
[1748077735360,35.15331,2555.1,2555.0,0.95440342]
[1748077739554,35.80662366,2555.1,2555.0,0.95440342]
[1748077739961,0.78257,2554.9,2554.8,0.00586682]
[1748077740162,3.99037,2554.9,2554.8,0.00586682]
[1748077740356,8.99037,2554.9,2554.8,0.00586682]
[1748077740557,10.36697,2554.9,2554.8,0.00586682]
[1748077741262,0.7826,2554.8,2554.7,4.1e-07]